Workbook

Sheet CORTISOL
A1: IDENTIF. | B1: CORTISOL | F1: Efecto | H1: Total | K1: Efecto | O1: Total
B2: TRA | C2: BA | F2: Si | G2: No | K2: Si | M2: No
A3: 007- | B3: 1.4 | C3: 1.1 | E3: BA | F3: 4 | G3: 1 | H3: =SUM(F3:G3) -> 5 | K3: Obs. | L3: Esp | M3: Obs. | N3: Esp.
A4: 0038- | B4: 1.1 | C4: 1.1 | E4: TRA | F4: 1 | G4: 4 | H4: =SUM(F4:G4) -> 5 | J4: BA | K4: 4 | L4: 2.5 | M4: 1 | N4: 2.3 | O4: =K4+M4 -> 5
A5: 0092- | B5: 3.6 | C5: 1.1 | E5: Total | F5: =SUM(F3:F4) -> 5 | G5: =SUM(G3:G4) -> 5 | H5: 10 | J5: TRA | K5: 1 | L5: 2.5 | M5: 4 | N5: 2.5 | O5: =K5+M5 -> 5
A6: 0125- | B6: 2.7 | C6: 1.8 | J6: Total | K6: =SUM(K4:K5) -> 5 | L6: =SUM(L4:L5) -> 5 | M6: =SUM(M4:M5) -> 5 | N6: =SUM(N4:N5) -> 4.8 | O6: =SUM(O4:O5) -> 10
A7: 1999- | B7: 3.3 | C7: 2.2
B10: TRA | C10: BA | E10: Prop. | F10: =(F3+F4)/(H3+H4)*100 -> 50 | I10: A | J10: =POWER(K4-L4,2)/L4 -> 0.9 | L10: =F3*G4 -> 16 | M10: =F5*G5*H3*H4 -> 625
A11: PROMEDIO | B11: =AVERAGE(B3:B7) -> 2.42 | C11: =AVERAGE(C3:C7) -> 1.46 | I11: B | J11: =POWER(M4-N4,2)/N4 -> 0.7347826087 | L11: =G3*F4 -> 1
I12: C | J12: =POWER(K5-L5,2)/L5 -> 0.9 | L12: =L10-L11 -> 15 | N12: =L14/M10 -> 3.6 | O12: p<0,05
I13: D | J13: =POWER(M5-N5,2)/N5 -> 0.9 | L13: =POWER(L10-L11,2) -> 225
A14: VAL. NORMALES | B14: 4,2 - 38,4 | I14: CHI | J14: =SUM(J10:J13) -> 3.434782609 | K14: p<0,05 | L14: =H5*L13 -> 2250

Sheet HEMATOCRITO
A1: IDENTIF. | B1: Hematocrito | F1: Efecto | H1: Total | K1: Efecto | O1: Total
B2: TRA | C2: BA | F2: Si | G2: No | K2: Si | M2: No
A3: 007- | B3: 38 | C3: 33 | E3: BA | F3: 8 | G3: 2 | H3: =SUM(F3:G3) -> 10 | K3: Obs. | L3: Esp | M3: Obs. | N3: Esp.
A4: 0038- | B4: 28 | C4: 29 | E4: TRA | F4: 2 | G4: 8 | H4: =SUM(F4:G4) -> 10 | J4: BA | K4: 8 | L4: 5 | M4: 2 | N4: 5 | O4: =K4+M4 -> 10
A5: 0043- | B5: 29 | C5: 29 | E5: Total | F5: =SUM(F3:F4) -> 10 | G5: =SUM(G3:G4) -> 10 | H5: 20 | J5: TRA | K5: 2 | L5: 5 | M5: 8 | N5: 5 | O5: =K5+M5 -> 10
A6: 0047- | B6: 35 | C6: 33 | J6: Total | K6: =SUM(K4:K5) -> 10 | L6: =SUM(L4:L5) -> 10 | M6: =SUM(M4:M5) -> 10 | N6: =SUM(N4:N5) -> 10 | O6: =SUM(O4:O5) -> 20
A7: 0053- | B7: 36 | C7: 33
A8: 0092- | B8: 35 | C8: 33
A9: 0098- | B9: 32 | C9: 30
A10: 0-104 | B10: 32 | C10: 30 | E10: Prop. | F10: =(F3+F4)/(H3+H4)*100 -> 50 | I10: A | J10: =POWER(K4-L4,2)/L4 -> 1.8 | L10: =F3*G4 -> 64 | M10: =F5*G5*H3*H4 -> 10000
A11: 0125- | B11: 30 | C11: 29 | I11: B | J11: =POWER(M4-N4,2)/N4 -> 1.8 | L11: =G3*F4 -> 4
A12: 1999- | B12: 36 | C12: 31 | F12: TRA | G12: BA | I12: C | J12: =POWER(K5-L5,2)/L5 -> 1.8 | L12: =L10-L11 -> 60 | N12: =L14/M10 -> 7.2 | O12: p<0,01
A13: VAL. NORMALES | B13: 36 (30-40) | E13: Promedio | F13: =AVERAGE(B3:B12) -> 33.1 | G13: =AVERAGE(C3:C12) -> 31 | I13: D | J13: =POWER(M5-N5,2)/N5 -> 1.8 | L13: =POWER(L10-L11,2) -> 3600
I14: CHI | J14: =SUM(J10:J13) -> 7.2 | K14: p<0,01 | L14: =H5*L13 -> 72000

Sheet LEUCOCITOS
A1: IDENTIF. | B1: LEUCOCITOS | F1: Efecto | H1: Total | K1: Efecto | O1: Total
B2: TRA | C2: BA | F2: Si | G2: No | K2: Si | M2: No
A3: 0007- | B3: 6300 | C3: 4400 | E3: BA | F3: 9 | G3: 1 | H3: =SUM(F3:G3) -> 10 | K3: Obs. | L3: Esp | M3: Obs. | N3: Esp.
A4: 0038- | B4: 4550 | C4: 5500 | E4: TRA | F4: 1 | G4: 9 | H4: =SUM(F4:G4) -> 10 | J4: BA | K4: 9 | L4: 5 | M4: 1 | N4: 5 | O4: =K4+M4 -> 10
A5: 0043- | B5: 5700 | C5: 6300 | E5: Total | F5: =SUM(F3:F4) -> 10 | G5: =SUM(G3:G4) -> 10 | H5: 20 | J5: TRA | K5: 1 | L5: 5 | M5: 9 | N5: 5 | O5: =K5+M5 -> 10
A6: 0047- | B6: 4650 | C6: 5700 | J6: Total | K6: =SUM(K4:K5) -> 10 | L6: =SUM(L4:L5) -> 10 | M6: =SUM(M4:M5) -> 10 | N6: =SUM(N4:N5) -> 10 | O6: =SUM(O4:O5) -> 20
A7: 0053- | B7: 5800 | C7: 6100
A8: 0092- | B8: 5650 | C8: 6250
A9: 0098- | B9: 6050 | C9: 9400
A10: 0104- | B10: 5800 | C10: 5950 | E10: Prop. | F10: =(F3+F4)/(H3+H4)*100 -> 50 | I10: A | J10: =POWER(K4-L4,2)/L4 -> 3.2 | L10: =F3*G4 -> 81 | M10: =F5*G5*H3*H4 -> 10000
A11: 0125- | B11: 5100 | C11: 5500 | I11: B | J11: =POWER(M4-N4,2)/N4 -> 3.2 | L11: =G3*F4 -> 1
A12: 1999- | B12: 6950 | C12: 7500 | F12: TRA | G12: BA | I12: C | J12: =POWER(K5-L5,2)/L5 -> 3.2 | L12: =L10-L11 -> 80 | N12: =L14/M10 -> 12.8 | O12: p<0,001
A13: VAL. NORMALES | B13: 7.5 (5-10) | E13: PROMEDIO | F13: =AVERAGE(B7:B15) -> 5891.666667 | G13: =AVERAGE(C7:C15) -> 6783.333333 | I13: D | J13: =POWER(M5-N5,2)/N5 -> 3.2 | L13: =POWER(L10-L11,2) -> 6400
I14: CHI | J14: =SUM(J10:J13) -> 12.8 | K14: p<0,001 | L14: =H5*L13 -> 128000

Sheet GLUCEMIA
A1: IDENTIF. | B1: GLUCEMIA | F1: Efecto | H1: Total | K1: Efecto | O1: Total
B2: TRA | C2: BA | F2: Si | G2: No | K2: Si | M2: No
A3: 0007- | B3: 57 | C3: 67 | E3: BA | F3: 8 | G3: 2 | H3: =SUM(F3:G3) -> 10 | K3: Obs. | L3: Esp | M3: Obs. | N3: Esp.
A4: 0038- | B4: 56 | C4: 58 | E4: TRA | F4: 2 | G4: 8 | H4: =SUM(F4:G4) -> 10 | J4: BA | K4: 8 | L4: 5 | M4: 2 | N4: 5 | O4: =K4+M4 -> 10
A5: 0043- | B5: 55 | C5: 59 | E5: Total | F5: =SUM(F3:F4) -> 10 | G5: =SUM(G3:G4) -> 10 | H5: 20 | J5: TRA | K5: 2 | L5: 5 | M5: 8 | N5: 5 | O5: =K5+M5 -> 10
A6: 0047- | B6: 66 | C6: 62 | J6: Total | K6: =SUM(K4:K5) -> 10 | L6: =SUM(L4:L5) -> 10 | M6: =SUM(M4:M5) -> 10 | N6: =SUM(N4:N5) -> 10 | O6: =SUM(O4:O5) -> 20
A7: 0053- | B7: 48 | C7: 62
A8: 0092- | B8: 52 | C8: 54
A9: 0098- | B9: 61 | C9: 64
A10: 0104- | B10: 57 | C10: 52 | E10: Prop. | F10: =(F3+F4)/(H3+H4)*100 -> 50 | I10: A | J10: =POWER(K4-L4,2)/L4 -> 1.8 | L10: =F3*G4 -> 64 | M10: =F5*G5*H3*H4 -> 10000
A11: 0125- | B11: 56 | C11: 58 | F11: TRA | G11: BA | I11: B | J11: =POWER(M4-N4,2)/N4 -> 1.8 | L11: =G3*F4 -> 4
A12: 1999- | B12: 53 | C12: 63 | E12: PROMEDIO | F12: =AVERAGE(B3:B12) -> 56.1 | G12: =AVERAGE(C3:C12) -> 59.9 | I12: C | J12: =POWER(K5-L5,2)/L5 -> 1.8 | L12: =L10-L11 -> 60 | N12: =L14/M10 -> 7.2 | O12: p<0,05
A13: Val. Normales | B13: 50 (45-60) | I13: D | J13: =POWER(M5-N5,2)/N5 -> 1.8 | L13: =POWER(L10-L11,2) -> 3600
I14: CHI | J14: =SUM(J10:J13) -> 7.2 | K14: p<0,05 | L14: =H5*L13 -> 72000

Sheet CREATININEMIA
A1: IDENTIF. | B1: CREATININEMIA | F1: Efecto | H1: Total | K1: Efecto | O1: Total
B2: TRA | C2: BA | F2: Si | G2: No | K2: Si | M2: No
A3: 007- | B3: 1.91 | C3: 1.67 | E3: BA | F3: 8 | G3: 2 | H3: =SUM(F3:G3) -> 10 | K3: Obs. | L3: Esp | M3: Obs. | N3: Esp.
A4: 0038- | B4: 1.92 | C4: 1.92 | E4: TRA | F4: 2 | G4: 8 | H4: =SUM(F4:G4) -> 10 | J4: BA | K4: 8 | L4: 5 | M4: 2 | N4: 5 | O4: =K4+M4 -> 10
A5: 0043- | B5: 1.35 | C5: 1.36 | E5: Total | F5: =SUM(F3:F4) -> 10 | G5: =SUM(G3:G4) -> 10 | H5: 20 | J5: TRA | K5: 2 | L5: 5 | M5: 8 | N5: 5 | O5: =K5+M5 -> 10
A6: 0047- | B6: 1.65 | C6: 1.5 | J6: Total | K6: =SUM(K4:K5) -> 10 | L6: =SUM(L4:L5) -> 10 | M6: =SUM(M4:M5) -> 10 | N6: =SUM(N4:N5) -> 10 | O6: =SUM(O4:O5) -> 20
A7: 0053- | B7: 1.66 | C7: 1.29
A8: 0092- | B8: 1.8 | C8: 1.62
A9: 0098- | B9: 1.83 | C9: 1.51
A10: 0-104 | B10: 2.02 | C10: 1.92 | E10: Prop. | F10: =(F3+F4)/(H3+H4)*100 -> 50 | I10: A | J10: =POWER(K4-L4,2)/L4 -> 1.8 | L10: =F3*G4 -> 64 | M10: =F5*G5*H3*H4 -> 10000
A11: 0125- | B11: 2.09 | C11: 2.04 | I11: B | J11: =POWER(M4-N4,2)/N4 -> 1.8 | L11: =G3*F4 -> 4
A12: 1999- | B12: 1.98 | C12: 1.84 | F12: TRA | G12: BA | I12: C | J12: =POWER(K5-L5,2)/L5 -> 1.8 | L12: =L10-L11 -> 60 | N12: =L14/M10 -> 7.2 | O12: p<0,001
A13: VAL. NORMALES | B13: 1,2 (1-1,5) | E13: Promedio | F13: =AVERAGE(B3:B12) -> 1.821 | G13: =AVERAGE(C3:C12) -> 1.667 | I13: D | J13: =POWER(M5-N5,2)/N5 -> 1.8 | L13: =POWER(L10-L11,2) -> 3600
I14: CHI | J14: =SUM(J10:J13) -> 7.2 | K14: p<0,001 | L14: =H5*L13 -> 72000

Sheet FOSFATASA ALC.
A1: IDENTIF. | B1: FOSFATASA ALCALINA | F1: Efecto | H1: Total | K1: Efecto | O1: Total
B2: TRA | C2: BA | F2: Si | G2: No | K2: Si | M2: No
A3: 007- | B3: 85 | C3: 102 | E3: BA | F3: 4 | G3: 6 | H3: =SUM(F3:G3) -> 10 | K3: Obs. | L3: Esp | M3: Obs. | N3: Esp.
A4: 0038- | B4: 135 | C4: 143 | E4: TRA | F4: 6 | G4: 4 | H4: =SUM(F4:G4) -> 10 | J4: BA | K4: 4 | L4: 5 | M4: 6 | N4: 5 | O4: =K4+M4 -> 10
A5: 0043- | B5: 126 | C5: 102 | E5: Total | F5: =SUM(F3:F4) -> 10 | G5: =SUM(G3:G4) -> 10 | H5: 20 | J5: TRA | K5: 6 | L5: 5 | M5: 4 | N5: 5 | O5: =K5+M5 -> 10
A6: 0047- | B6: 284 | C6: 234 | J6: Total | K6: =SUM(K4:K5) -> 10 | L6: =SUM(L4:L5) -> 10 | M6: =SUM(M4:M5) -> 10 | N6: =SUM(N4:N5) -> 10 | O6: =SUM(O4:O5) -> 20
A7: 0053- | B7: 122 | C7: 100
A8: 0092- | B8: 148 | C8: 149
A9: 0098- | B9: 160 | C9: 168
A10: 0-104 | B10: 85 | C10: 89 | E10: Prop. | F10: =(F3+F4)/(H3+H4)*100 -> 50 | I10: A | J10: =POWER(K4-L4,2)/L4 -> 0.2 | L10: =F3*G4 -> 16 | M10: =F5*G5*H3*H4 -> 10000
A11: 0125- | B11: 74 | C11: 96 | I11: B | J11: =POWER(M4-N4,2)/N4 -> 0.2 | L11: =G3*F4 -> 36
A12: 1999- | B12: 146 | C12: 133 | F12: TRA | G12: BA | I12: C | J12: =POWER(K5-L5,2)/L5 -> 0.2 | L12: =L10-L11 -> -20 | N12: =L14/M10 -> 0.8 | O12: p<0,1
A13: VAL. NORMALES | B13: 200(100-300) | E13: Promedio | F13: =AVERAGE(B3:B12) -> 136.5 | G13: =AVERAGE(C3:C12) -> 131.6 | I13: D | J13: =POWER(M5-N5,2)/N5 -> 0.2 | L13: =POWER(L10-L11,2) -> 400
I14: CHI | J14: =SUM(J10:J13) -> 0.8 | K14: p<0,1 | L14: =H5*L13 -> 8000

Sheet FRE. CARDIACA
A1: IDENTIF. | B1: FRECUENCIA CARDIACA | F1: Efecto | H1: Total | K1: Efecto | O1: Total
B2: TRA | C2: BA | F2: Si | G2: No | K2: Si | M2: No
A3: 007- | B3: 144 | C3: 75 | E3: BA | F3: 10 | G3: 0 | H3: =SUM(F3:G3) -> 10 | K3: Obs. | L3: Esp | M3: Obs. | N3: Esp.
A4: 0038- | B4: 72 | C4: 70 | E4: TRA | F4: 0 | G4: 10 | H4: =SUM(F4:G4) -> 10 | J4: BA | K4: 10 | L4: 5 | M4: 0 | N4: 5 | O4: =K4+M4 -> 10
A5: 0043- | B5: 132 | C5: 78 | E5: Total | F5: =SUM(F3:F4) -> 10 | G5: =SUM(G3:G4) -> 10 | H5: 20 | J5: TRA | K5: 0 | L5: 5 | M5: 10 | N5: 5 | O5: =K5+M5 -> 10
A6: 0047- | B6: 136 | C6: 77 | J6: Total | K6: =SUM(K4:K5) -> 10 | L6: =SUM(L4:L5) -> 10 | M6: =SUM(M4:M5) -> 10 | N6: =SUM(N4:N5) -> 10 | O6: =SUM(O4:O5) -> 20
A7: 0053- | B7: 120 | C7: 85
A8: 0092- | B8: 160 | C8: 68
A9: 0098- | B9: 118 | C9: 78
A10: 0-104 | B10: 84 | C10: 66 | E10: Prop. | F10: =(F3+F4)/(H3+H4)*100 -> 50 | I10: A | J10: =POWER(K4-L4,2)/L4 -> 5 | L10: =F3*G4 -> 100 | M10: =F5*G5*H3*H4 -> 10000
A11: 0125- | B11: 84 | C11: 66 | I11: B | J11: =POWER(M4-N4,2)/N4 -> 5 | L11: =G3*F4 -> 0
A12: 1999- | B12: 156 | C12: 77 | F12: TRA | G12: BA | I12: C | J12: =POWER(K5-L5,2)/L5 -> 5 | L12: =L10-L11 -> 100 | N12: =L14/M10 -> 20 | O12: p<0,001
A13: VAL. NORMALES | B13: 60 | E13: Promedio | F13: 120.6 | G13: 74 | I13: D | J13: =POWER(M5-N5,2)/N5 -> 5 | L13: =POWER(L10-L11,2) -> 10000
I14: CHI | J14: =SUM(J10:J13) -> 20 | K14: p<0,001 | L14: =H5*L13 -> 200000

Sheet VISUAL. EXTER.
J3: BOSTEO | K3: ORINA
C4: MUGIDOS | I4: BA | J4: 3 | K4: 1
C5: BA | D5: TRA | I5: TRA | J5: 11 | K5: 2
C6: 75 | D6: 144
